bitfinex/quotes_BTCUSD_20240717
["timestamp","ask_amount","ask_price","bid_price","bid_amount"]
[1721201840910,0.979515,65341.0,65340.0,0.009699]
[1721201841112,1.210601,65341.0,65340.0,0.009699]
[1721201841313,1.196601,65341.0,65340.0,0.009699]
[1721201841511,1.210601,65341.0,65340.0,0.009699]
[1721201842283,1.196601,65341.0,65340.0,0.009699]
[1721201842480,0.793215,65341.0,65340.0,0.009699]
[1721201842724,0.028,65341.0,65340.0,0.009699]
[1721201843166,0.028,65341.0,65340.0,0.0177603]
[1721201843167,0.025,65341.0,65340.0,0.0177603]
[1721201843285,0.239043,65341.0,65340.0,0.0177603]
[1721201843486,0.036,65341.0,65340.0,0.0177603]
[1721201844304,0.036,65341.0,65340.0,0.34164204]
[1721201844518,0.036,65341.0,65340.0,0.1642603]
[1721201844725,0.036,65341.0,65340.0,0.0177603]
[1721201844926,0.061,65341.0,65340.0,0.0177603]
[1721201845152,1.132301,65341.0,65340.0,0.0177603]
[1721201845578,1.132301,65341.0,65340.0,0.009699]
[1721201845830,0.826215,65341.0,65340.0,0.009699]
[1721201846256,0.164043,65341.0,65340.0,0.009699]
[1721201846504,0.165043,65341.0,65340.0,0.009699]
[1721201846962,0.154043,65341.0,65340.0,0.009699]
[1721201847223,0.164043,65341.0,65340.0,0.009699]
[1721201847450,0.012,65341.0,65340.0,0.157999]
[1721201847717,0.013,65341.0,65340.0,0.157999]
[1721201847954,0.001,65341.0,65340.0,0.79451674]
[1721201848173,0.003,65341.0,65340.0,0.79451674]
[1721201848397,0.005,65341.0,65340.0,0.79451674]
[1721201848619,0.003,65341.0,65340.0,0.79451674]
[1721201848852,0.003,65341.0,65340.0,0.79551674]
[1721201849574,0.002,65341.0,65340.0,0.79551674]
[1721201849817,0.07717479,65368.0,65340.0,0.79551674]
[1721201849818,0.00277097,65350.0,65349.0,0.153024]
[1721201850033,0.00277097,65351.0,65350.0,0.153022]
[1721201850257,0.05,65360.0,65351.0,0.153017]
[1721201850476,0.00277097,65359.0,65352.0,0.17738174]
[1721201850643,0.00277097,65362.0,65354.0,0.153012]
[1721201850852,0.00277097,65362.0,65355.0,0.023]
[1721201851272,0.15576497,65362.0,65355.0,0.023]
[1721201851621,0.00277097,65363.0,65355.0,0.17738174]
[1721201851931,0.04970797,65364.0,65361.0,0.0622]
[1721201852061,0.00277097,65363.0,65361.0,0.0622]
[1721201852261,0.00277097,65365.0,65361.0,0.0622]
[1721201852468,0.05,65366.0,65361.0,0.0622]
[1721201852874,0.00277097,65365.0,65361.0,0.0622]
[1721201853146,0.05,65366.0,65361.0,0.0622]
[1721201853589,0.01,65365.0,65361.0,0.0622]
[1721201853711,0.00277097,65364.0,65361.0,0.0622]
[1721201853919,0.05,65362.0,65360.0,0.0795]
[1721201854120,0.008,65363.0,65357.0,0.153005]
[1721201854347,0.00277097,65362.0,65357.0,0.153005]
[1721201854545,0.00277097,65363.0,65357.0,0.153005]
[1721201854747,0.05,65362.0,65356.0,0.0653]
[1721201854903,0.05,65362.0,65357.0,0.023]
[1721201855106,0.00277097,65364.0,65357.0,0.023]
[1721201855400,0.05277097,65364.0,65357.0,0.329009]
[1721201855703,0.05,65364.0,65357.0,0.177005]
[1721201856221,0.05184,65366.0,65357.0,0.024]
[1721201856426,0.00277097,65363.0,65359.0,0.153]
[1721201856535,0.05184,65366.0,65359.0,0.153]
[1721201856536,0.00277097,65365.0,65359.0,0.153]
[1721201857643,0.05084,65366.0,65360.0,0.152998]
[1721201857849,0.00277097,65365.0,65360.0,0.152998]
[1721201858582,0.05084,65366.0,65360.0,0.152998]
[1721201858780,0.00277097,65365.0,65360.0,0.152998]
[1721201859041,0.05277097,65365.0,65357.0,0.023]
[1721201859296,0.05,65360.0,65357.0,0.023]
[1721201860152,0.05,65360.0,65357.0,0.176005]
[1721201860766,0.235087,65365.0,65358.0,0.153003]
[1721201860767,0.05,65362.0,65358.0,0.153003]
[1721201860942,0.05,65364.0,65358.0,0.153003]
[1721201861794,0.05,65364.0,65354.0,0.306023]
[1721201861795,0.05,65358.0,65350.0,0.0829]
[1721201862001,0.07717479,65359.0,65340.0,0.109699]
[1721201862002,0.05,65350.0,65343.0,0.1459]
[1721201862201,0.05,65348.0,65344.0,0.1]
[1721201862407,0.153019,65352.0,65344.0,0.1]
[1721201862408,0.05,65350.0,65344.0,0.253035]
[1721201863185,0.05,65350.0,65344.0,0.1]
[1721201863508,0.153024,65349.0,65341.0,0.253042]
[1721201863696,0.153022,65350.0,65342.0,0.15304]
[1721201863896,0.153022,65350.0,65343.0,0.1]
[1721201864110,0.153022,65350.0,65346.0,0.002924]
[1721201864633,0.153019,65351.0,65346.0,0.001924]
[1721201864810,0.203023,65350.0,65346.0,0.002924]
[1721201865006,0.203023,65350.0,65346.0,0.001924]
[1721201865146,0.203023,65350.0,65346.0,0.000924]
[1721201865352,0.306041,65351.0,65346.0,0.000924]
[1721201865547,0.05,65353.0,65346.0,0.000924]
[1721201865743,0.05,65356.0,65351.0,0.153018]
[1721201865945,0.05,65357.0,65350.0,0.153022]
[1721201866146,0.05,65357.0,65351.0,0.15438174]
[1721201866352,0.04993517,65360.0,65353.0,0.153014]
[1721201866353,0.09993517,65360.0,65353.0,0.153014]
[1721201866791,0.04993517,65360.0,65355.0,0.15301]
[1721201866994,0.006,65356.0,65353.0,0.459041]
[1721201867199,0.006,65356.0,65355.0,0.15301]
[1721201868103,0.006,65356.0,65355.0,0.91943174]
[1721201868320,0.00084,65366.0,65359.0,0.153001]
[1721201868321,0.008,65360.0,65359.0,0.153001]
[1721201869191,0.008,65360.0,65359.0,0.16101185]
[1721201869550,0.004,65360.0,65359.0,1.06489759]
[1721201869752,0.004,65360.0,65359.0,1.08789759]
[1721201870161,0.00084,65366.0,65365.0,0.458961]
[1721201871412,0.00384,65366.0,65365.0,0.458961]
[1721201871783,0.00384,65366.0,65364.0,0.305977]
[1721201871784,0.00384,65366.0,65364.0,0.152989]
[1721201871987,0.07717479,65365.0,65359.0,0.62889459]
[1721201872361,0.07717479,65365.0,65363.0,0.15299]
[1721201872570,0.07717479,65365.0,65359.0,0.00801085]
[1721201872571,0.26789,65364.0,65359.0,0.00801085]
[1721201872768,0.00277097,65363.0,65359.0,0.153]
[1721201872974,0.00084,65366.0,65359.0,0.153]
[1721201872975,0.001,65360.0,65359.0,0.829804]
[1721201873176,0.001,65360.0,65359.0,0.622802]
[1721201873348,0.001,65360.0,65359.0,0.559002]
[1721201873525,0.001,65360.0,65359.0,0.79318374]
[1721201873690,0.001,65365.0,65360.0,0.305995]
[1721201873892,0.001,65365.0,65362.0,0.152993]
[1721201874160,0.001,65363.0,65362.0,0.152993]
[1721201874565,0.1959,65363.0,65359.0,0.27738174]
[1721201874765,0.05,65362.0,65360.0,0.023]
[1721201874962,0.1459,65363.0,65360.0,0.023]
[1721201874963,0.05,65361.0,65360.0,0.023]
[1721201875160,0.001,65363.0,65360.0,0.175996]
[1721201875332,0.001,65363.0,65360.0,0.023]
[1721201875540,0.05,65360.0,65359.0,0.002]
[1721201875699,0.07717479,65362.0,65359.0,0.002]
[1721201875700,0.00277097,65362.0,65359.0,0.002]
[1721201875905,0.00277097,65362.0,65359.0,0.001]
[1721201876106,0.00277097,65362.0,65356.0,0.253007]
[1721201876306,0.00277097,65362.0,65357.0,0.00801616]
[1721201876719,0.00277097,65363.0,65357.0,0.16102016]
[1721201876945,0.001,65362.0,65359.0,0.001]
[1721201877153,0.00277097,65363.0,65358.0,0.1]
[1721201877411,0.001,65362.0,65358.0,0.1]
[1721201877901,0.001,65362.0,65361.0,0.458988]
[1721201878102,0.001,65362.0,65361.0,0.481988]
[1721201878487,0.001,65362.0,65361.0,1.43075374]
[1721201879558,0.00084,65366.0,65365.0,0.458961]
[1721201879758,0.00084,65366.0,65365.0,0.94231674]
[1721201879969,0.00084,65366.0,65365.0,0.95031166]
[1721201880174,0.00084,65366.0,65365.0,1.50138566]
[1721201880373,0.00084,65366.0,65365.0,1.62841915]
[1721201881171,0.00184,65366.0,65365.0,1.62841915]
[1721201881371,0.00184,65366.0,65365.0,1.96089315]
[1721201881581,0.00084,65366.0,65365.0,1.96089315]
[1721201882275,0.00084,65366.0,65365.0,2.26686715]
[1721201882455,0.00084,65370.0,65369.0,1.419342]
[1721201882666,0.00084,65370.0,65369.0,1.82375723]
[1721201882870,0.00084,65370.0,65369.0,2.19317238]
[1721201883388,0.00084,65370.0,65369.0,2.12967412]
[1721201883600,0.00084,65370.0,65369.0,2.13765842]
[1721201883799,0.00084,65370.0,65369.0,2.20115714]
[1721201884204,0.00284,65370.0,65369.0,2.14765842]
[1721201884391,0.00284,65370.0,65369.0,1.71275076]
[1721201884730,0.00284,65370.0,65369.0,2.01870576]
[1721201885625,0.00184,65370.0,65369.0,2.04070576]
[1721201885827,0.00184,65370.0,65369.0,2.34666076]
[1721201886030,0.00084,65370.0,65369.0,2.33766354]
[1721201886454,0.00284,65370.0,65369.0,2.34366354]
[1721201886897,0.00084,65370.0,65369.0,2.36830354]
[1721201887304,0.00184,65370.0,65369.0,2.36930354]
[1721201887545,0.00084,65370.0,65369.0,2.36830354]
[1721201887763,0.00184,65370.0,65369.0,2.37330354]
[1721201888406,0.00184,65370.0,65369.0,2.41898548]
[1721201888825,0.00184,65370.0,65369.0,2.37330354]
[1721201889034,0.00184,65370.0,65369.0,2.41898548]
[1721201889235,0.00084,65370.0,65369.0,2.38666871]
[1721201889446,0.00184,65370.0,65369.0,2.46027096]
[1721201889628,0.00284,65370.0,65369.0,2.46127096]
[1721201889832,0.00284,65370.0,65369.0,2.3742959]
[1721201890033,0.00284,65370.0,65369.0,2.80037662]
[1721201890231,0.00384,65370.0,65369.0,2.3752959]
[1721201890510,0.00384,65370.0,65369.0,2.44389815]
[1721201890922,0.00384,65370.0,65369.0,2.08445309]
[1721201891135,0.00384,65370.0,65369.0,2.0387009]
[1721201891345,0.00384,65370.0,65369.0,2.11509309]
[1721201891545,0.00384,65370.0,65369.0,2.78301295]
[1721201892047,0.00384,65370.0,65369.0,2.7144107]
[1721201892398,0.00384,65370.0,65369.0,2.80588036]
[1721201892607,0.00284,65370.0,65369.0,2.80098218]
[1721201892992,0.00384,65370.0,65369.0,2.80598218]
[1721201893199,0.00384,65370.0,65369.0,2.73277954]
[1721201893416,0.00284,65370.0,65369.0,2.72777954]
[1721201893650,0.00284,65370.0,65369.0,3.14824752]
[1721201893850,0.00384,65370.0,65369.0,2.71440661]
[1721201894298,0.00384,65370.0,65369.0,2.84729347]
[1721201894427,0.00384,65370.0,65369.0,2.71440661]
[1721201894629,0.00384,65370.0,65369.0,2.3752929]
[1721201894836,0.00384,65370.0,65369.0,2.71439239]
[1721201895043,0.00384,65370.0,65369.0,3.02034739]
[1721201895266,0.00384,65370.0,65369.0,2.71439239]
[1721201895666,0.00277097,65390.0,65389.0,1.070513]
[1721201895880,0.04970979,65391.0,65390.0,0.152928]
[1721201896049,0.0626,65399.0,65398.0,0.458728]
[1721201896245,0.0626,65399.0,65398.0,1.04192874]
[1721201896768,0.1126,65399.0,65398.0,0.1]
[1721201896973,0.1126,65399.0,65398.0,0.09806856]
[1721201896974,0.0626,65399.0,65398.0,0.09806856]
[1721201897135,0.0626,65399.0,65398.0,0.25097756]
[1721201897339,0.0626,65399.0,65398.0,0.7111783]
[1721201897541,0.0636,65399.0,65398.0,0.72386106]
[1721201897760,0.0636,65399.0,65398.0,0.72286106]
[1721201897958,0.0626,65399.0,65398.0,0.63610974]
[1721201898160,0.0626,65399.0,65398.0,0.94192874]
[1721201898387,0.0626,65399.0,65398.0,0.90864272]
[1721201898737,0.001,65399.0,65398.0,1.21920112]
[1721201899143,0.001,65399.0,65398.0,1.23280008]
[1721201899539,0.001,65399.0,65398.0,0.96083611]
[1721201899741,0.001,65399.0,65398.0,1.07115105]
[1721201899990,0.001,65399.0,65398.0,1.17115105]
[1721201900200,0.001,65399.0,65398.0,0.85334625]
[1721201900450,0.002,65399.0,65398.0,1.17016525]
[1721201902548,0.002,65399.0,65398.0,1.17017501]
[1721201903503,0.002,65399.0,65398.0,1.47599401]
[1721201903731,0.002,65399.0,65398.0,2.08441301]
[1721201903940,0.002,65399.0,65398.0,2.57878979]
[1721201904140,0.002,65399.0,65398.0,2.81782212]
[1721201904363,0.025,65408.0,65404.0,0.5458]
[1721201904565,0.025,65408.0,65407.0,0.458665]
[1721201904766,0.025,65408.0,65407.0,1.45156844]
[1721201904942,0.025,65408.0,65407.0,1.51952528]
[1721201905143,0.025,65408.0,65407.0,1.48242515]
[1721201905647,0.025,65408.0,65407.0,1.35548425]
[1721201906608,0.025,65408.0,65407.0,0.74393025]
[1721201906609,0.1675,65408.0,65407.0,0.74393025]
[1721201906809,0.2175,65408.0,65407.0,0.00788351]
[1721201907008,0.1675,65408.0,65401.0,0.152902]
[1721201907206,0.07717479,65404.0,65402.0,0.305799]
[1721201907407,0.00277097,65403.0,65402.0,0.152898]
[1721201907627,0.0638,65407.0,65402.0,0.152898]
[1721201908023,0.0638,65407.0,65403.0,0.1]
[1721201908278,0.0638,65407.0,65403.0,0.11019159]
[1721201909035,0.05,65405.0,65403.0,0.11019159]
[1721201909239,0.0638,65407.0,65403.0,0.11219159]
[1721201909448,0.0638,65407.0,65406.0,0.458673]
[1721201909681,0.0638,65407.0,65406.0,0.33027274]
[1721201909879,0.0638,65407.0,65406.0,0.34045296]
[1721201910102,0.0638,65407.0,65406.0,0.64623496]
[1721201910263,0.0638,65407.0,65406.0,0.77319967]
[1721201910865,0.025,65408.0,65407.0,1.270219]
[1721201911212,0.025,65408.0,65407.0,1.68474189]
[1721201912200,0.025,65408.0,65407.0,1.69174189]
[1721201912409,0.025,65408.0,65407.0,1.68474189]
[1721201912631,0.025,65408.0,65407.0,1.72696829]
[1721201912832,0.025,65408.0,65407.0,1.69774189]
[1721201913239,0.025,65408.0,65407.0,1.68474189]
[1721201913695,0.025,65408.0,65407.0,1.69874189]
[1721201913931,0.025,65408.0,65407.0,1.71274189]
[1721201914143,0.025,65408.0,65407.0,1.69874189]
[1721201914274,0.025,65408.0,65407.0,1.6987186]
[1721201914481,0.025,65408.0,65407.0,1.7127186]
[1721201914685,0.025,65408.0,65407.0,1.754945]
[1721201914884,0.025,65408.0,65407.0,1.740945]
[1721201915084,0.025,65408.0,65407.0,1.88909127]
[1721201915283,0.025,65408.0,65407.0,1.88472591]
[1721201915649,0.025,65408.0,65407.0,1.92695231]
[1721201916247,0.025,65408.0,65407.0,2.37632931]
[1721201916461,0.04908772,65416.0,65415.0,1.16435]
[1721201916609,0.00084,65422.0,65416.0,0.764337]
[1721201916791,0.00084,65422.0,65416.0,1.6634908]
[1721201916997,0.00084,65422.0,65416.0,2.0448162]
[1721201917234,0.00084,65422.0,65416.0,1.74586747]
[1721201917394,0.00084,65422.0,65416.0,2.04492011]
[1721201917807,0.00084,65422.0,65416.0,2.04492114]
[1721201918014,0.00084,65422.0,65416.0,2.05892114]
[1721201919763,0.00084,65422.0,65416.0,2.12012114]
[1721201920167,0.00084,65422.0,65416.0,2.34252114]
[1721201920366,0.00084,65422.0,65416.0,2.66225614]
[1721201920747,0.00084,65422.0,65416.0,1.41964348]
[1721201920914,1e-06,65422.0,65421.0,2.01013774]
[1721201921128,1e-06,65422.0,65421.0,2.43232075]
[1721201921258,1e-06,65422.0,65421.0,2.83174824]
[1721201922071,0.00837,65428.0,65427.0,2.081262]
[1721201922304,0.00837,65428.0,65427.0,3.12105268]
[1721201922515,0.00837,65428.0,65427.0,3.17576527]
[1721201922710,0.00837,65428.0,65427.0,3.00348599]
[1721201923140,0.00837,65428.0,65427.0,3.17576527]
[1721201923358,0.00837,65428.0,65427.0,3.00348599]
[1721201923573,0.00837,65428.0,65427.0,3.01745475]
[1721201923773,0.00839,65432.0,65431.0,1.847397]
[1721201923998,0.00839,65432.0,65431.0,2.77814137]
[1721201924350,0.00839,65432.0,65431.0,3.0488529]
[1721201924489,0.00839,65432.0,65431.0,3.3545179]
[1721201924917,0.00839,65432.0,65431.0,3.74682513]
[1721201925130,0.00839,65449.0,65448.0,0.2]
[1721201925472,0.00839,65449.0,65448.0,2.18621728]
[1721201925591,0.00839,65449.0,65448.0,2.79738928]
[1721201925981,0.00839,65449.0,65448.0,2.75186192]
[1721201926154,0.00839,65449.0,65448.0,2.71036766]
[1721201926389,0.00839,65449.0,65448.0,2.02387592]
[1721201926617,0.14699,65449.0,65448.0,0.30717474]
[1721201926836,0.14699,65449.0,65448.0,0.61276074]
[1721201927064,0.14699,65449.0,65448.0,0.30717474]
[1721201927262,0.19699,65449.0,65448.0,0.15438174]
[1721201927690,0.19699,65449.0,65448.0,0.16838174]
[1721201927815,0.19699,65449.0,65448.0,0.17738174]
[1721201928016,0.14699,65449.0,65448.0,0.19138174]
[1721201928221,0.14699,65449.0,65448.0,0.20538174]
[1721201928435,0.14699,65449.0,65448.0,0.30162465]
[1721201928864,0.19699,65449.0,65448.0,0.31562465]
[1721201929500,0.14699,65449.0,65448.0,0.30538174]
[1721201929976,0.14699,65449.0,65448.0,0.31562465]
[1721201930310,0.34978,65449.0,65448.0,0.31562465]
[1721201930518,0.34978,65449.0,65448.0,0.16124291]
[1721201930717,0.655361,65449.0,65448.0,0.051]
[1721201930922,0.655361,65449.0,65448.0,0.06124291]
[1721201931071,0.655361,65449.0,65448.0,0.051]
[1721201931275,0.34978,65449.0,65448.0,0.051]
[1721201931600,0.655361,65449.0,65448.0,0.051]
[1721201932344,0.655361,65449.0,65442.0,0.1]
[1721201932345,0.458413,65443.0,65442.0,0.1]
[1721201932554,0.458413,65443.0,65433.0,0.152827]
[1721201932555,0.05,65439.0,65433.0,0.152827]
[1721201932800,0.202812,65440.0,65434.0,0.15438174]
[1721201932998,0.05,65439.0,65434.0,0.16467762]
[1721201933193,0.202815,65439.0,65434.0,0.16467762]
[1721201933589,0.152811,65440.0,65434.0,0.16467762]
[1721201933817,0.152809,65441.0,65434.0,0.16467762]
[1721201934017,0.152809,65441.0,65435.0,0.023]
[1721201934219,0.05,65435.0,65426.0,0.24554357]
[1721201934424,0.05,65432.0,65427.0,0.30722274]
[1721201934668,0.05,65428.0,65427.0,0.15438174]
[1721201934857,0.1263,65428.0,65427.0,0.15438174]
[1721201935223,0.1263,65428.0,65415.0,0.09481536]
[1721201935224,0.1152,65425.0,65415.0,0.09481536]
[1721201935423,0.1152,65425.0,65416.0,0.85438174]
[1721201935424,0.0763,65423.0,65416.0,0.85438174]
[1721201935778,0.0763,65423.0,65417.0,0.152864]
[1721201936067,0.0763,65423.0,65418.0,0.15438174]
[1721201936201,0.0763,65423.0,65419.0,0.15286]
[1721201936404,0.0763,65423.0,65420.0,0.15438174]
[1721201937087,0.0763,65423.0,65421.0,0.023]
[1721201937251,0.0763,65423.0,65421.0,0.123]
[1721201938422,0.06,65422.0,65421.0,0.123]
[1721201938615,0.06,65422.0,65421.0,0.137]
[1721201938748,0.06,65422.0,65421.0,0.151]
[1721201938958,0.262853,65422.0,65421.0,0.151]
[1721201939228,0.874267,65422.0,65421.0,0.128]
[1721201939425,0.874267,65422.0,65421.0,0.114]
[1721201940538,0.874267,65422.0,65421.0,0.1]
[1721201940808,0.202863,65418.0,65410.0,0.152881]
[1721201941028,0.305717,65420.0,65412.0,0.152876]
[1721201941029,0.00277097,65417.0,65412.0,0.152876]
[1721201941237,0.00277097,65417.0,65411.0,0.27738174]
[1721201941238,0.00277097,65419.0,65414.0,0.305744]
[1721201941441,0.06,65422.0,65418.0,0.152863]
[1721201941636,0.00277097,65421.0,65419.0,0.17738174]
[1721201941836,0.06,65422.0,65419.0,0.17738174]
[1721201942557,0.06,65422.0,65420.0,0.01362028]
[1721201942688,0.04965631,65426.0,65425.0,0.458539]
[1721201942894,0.0613,65428.0,65427.0,0.458526]
[1721201943166,0.5504,65430.0,65429.0,0.152837]
[1721201943442,0.0653,65433.0,65429.0,0.15438174]
[1721201943646,0.0653,65433.0,65430.0,0.15438174]
[1721201943847,0.00277097,65432.0,65430.0,0.15438174]
[1721201944022,0.0653,65433.0,65431.0,0.023]
[1721201944575,0.00277097,65432.0,65431.0,0.023]
[1721201944748,0.0653,65433.0,65431.0,0.023]
[1721201945081,0.0663,65433.0,65431.0,0.023]
[1721201945278,0.0653,65433.0,65431.0,0.023]
[1721201945482,0.0683,65433.0,65431.0,0.023]
[1721201945900,0.0683,65433.0,65432.0,0.01355669]
[1721201946128,0.003,65433.0,65432.0,0.64942843]
[1721201946329,0.003,65433.0,65432.0,0.74942843]
[1721201946916,0.00277097,65437.0,65433.0,0.152827]
[1721201947089,0.00277097,65437.0,65432.0,0.29093843]
[1721201947090,0.05,65436.0,65434.0,0.27738174]
[1721201947498,0.0604,65438.0,65434.0,0.43020674]
[1721201947685,0.00277097,65437.0,65434.0,0.43020674]
[1721201948093,0.05,65436.0,65434.0,0.43020674]
[1721201948303,0.152822,65436.0,65434.0,0.123]
[1721201948504,0.00277097,65435.0,65434.0,0.03]
[1721201948713,0.00277097,65435.0,65434.0,0.63585774]
[1721201948985,0.1104,65438.0,65434.0,0.27738174]
[1721201949205,0.20487479,65436.0,65435.0,0.1]
[1721201949408,0.35769579,65436.0,65435.0,0.1]
[1721201949611,0.35769579,65436.0,65435.0,0.1135408]
[1721201949788,0.35769579,65436.0,65435.0,0.1]
[1721201950506,0.05277097,65435.0,65434.0,0.026]
[1721201950737,0.05,65435.0,65434.0,0.026]
[1721201950924,0.508469,65435.0,65434.0,0.026]
[1721201951097,0.508469,65435.0,65434.0,0.03]
[1721201951505,0.957115,65435.0,65434.0,0.007]
[1721201951743,0.957115,65435.0,65414.0,0.305742]
[1721201951744,0.1102,65416.0,65406.0,0.2]
[1721201951924,0.1102,65416.0,65410.0,0.61592971]
[1721201952258,0.00277097,65415.0,65411.0,0.31962834]
[1721201952622,0.0602,65416.0,65411.0,0.31962834]
[1721201952788,0.0602,65416.0,65412.0,0.152876]
[1721201952944,0.0602,65416.0,65413.0,0.25438174]
[1721201953302,0.0602,65416.0,65413.0,0.26673973]
[1721201953508,0.0602,65416.0,65414.0,0.023]
[1721201953765,0.0602,65416.0,65414.0,0.17738174]
[1721201953940,0.0602,65416.0,65415.0,0.11234739]
[1721201954143,0.1102,65416.0,65415.0,0.13534739]
[1721201954353,0.344367,65416.0,65415.0,0.13534739]
[1721201954770,0.344367,65416.0,65415.0,0.123]
[1721201955387,0.1915,65416.0,65415.0,0.126]
[1721201955593,0.1415,65416.0,65415.0,0.126]
[1721201956009,0.1915,65416.0,65415.0,0.13834739]
[1721201956163,0.1915,65416.0,65415.0,0.03834739]
[1721201956365,0.1415,65416.0,65415.0,0.03834739]
[1721201956585,0.344367,65416.0,65415.0,0.03834739]
[1721201956800,0.344367,65416.0,65415.0,0.01234739]
[1721201956801,0.955837,65416.0,65415.0,0.01234739]
[1721201957007,0.202879,65411.0,65410.0,0.000924]
[1721201957211,0.652137,65411.0,65410.0,0.000924]
[1721201957588,0.346379,65411.0,65410.0,0.000924]
[1721201957913,0.296379,65411.0,65410.0,0.000924]
[1721201958137,0.1435,65411.0,65410.0,0.000924]
[1721201958337,0.1435,65411.0,65410.0,0.0132979]
[1721201958530,0.062,65411.0,65410.0,0.006924]
[1721201958730,0.1375,65416.0,65411.0,0.152877]
[1721201958931,0.0613,65416.0,65411.0,0.15438174]
[1721201959132,0.05,65420.0,65412.0,0.28974503]
[1721201959133,0.0613,65420.0,65412.0,0.28974503]
[1721201959288,0.05,65426.0,65415.0,0.3029]
[1721201959289,0.1375,65426.0,65415.0,0.3029]
[1721201959494,0.1375,65426.0,65423.0,0.152851]
[1721201959733,0.1375,65426.0,65423.0,0.33023274]
[1721201959947,0.5364,65430.0,65425.0,0.305693]
[1721201960287,0.5364,65430.0,65423.0,0.17738174]
[1721201960288,0.4708,65430.0,65429.0,0.764185]
[1721201960436,0.4708,65430.0,65429.0,1.01856674]
[1721201960639,0.4708,65430.0,65429.0,1.34724074]
[1721201960845,0.4708,65430.0,65429.0,1.04156674]
[1721201961021,0.4708,65430.0,65429.0,0.43021874]
[1721201961222,0.4718,65430.0,65429.0,0.43021874]
[1721201961425,0.4708,65430.0,65429.0,0.43021874]
[1721201961623,0.4718,65430.0,65429.0,0.44221874]
[1721201962274,0.5351,65430.0,65429.0,0.135]
[1721201962520,0.4718,65430.0,65429.0,0.44221874]
[1721201962718,0.4718,65430.0,65429.0,0.74789274]
[1721201962918,0.4718,65430.0,65429.0,0.76089274]
[1721201963118,0.4708,65430.0,65429.0,1.05456674]
[1721201963326,0.4708,65430.0,65429.0,1.04156674]
[1721201963532,0.4708,65430.0,65429.0,1.06356674]
[1721201963885,0.4708,65430.0,65429.0,1.05056674]
[1721201964088,0.4708,65430.0,65429.0,1.38151394]
[1721201964302,0.4708,65430.0,65429.0,1.50841253]
[1721201964507,0.4728,65430.0,65429.0,1.49841253]
[1721201965051,0.4728,65430.0,65429.0,1.51141253]
[1721201965052,0.002,65430.0,65429.0,1.51141253]
[1721201965167,0.003,65430.0,65429.0,1.52341253]
[1721201966573,0.00084,65436.0,65435.0,0.764115]
[1721201966795,0.00084,65436.0,65435.0,1.04149674]
[1721201966968,0.00084,65436.0,65435.0,0.73585074]
[1721201967560,0.00084,65436.0,65435.0,0.74809215]
[1721201967760,0.00084,65436.0,65435.0,0.76109215]
[1721201968370,0.00084,65436.0,65435.0,0.77409215]
[1721201969741,0.00184,65436.0,65435.0,0.78609215]
[1721201969958,0.00184,65436.0,65435.0,0.76009215]
[1721201970339,0.00084,65436.0,65435.0,0.76109215]
[1721201970574,0.00084,65436.0,65435.0,0.77309215]
[1721201970778,0.00184,65436.0,65435.0,0.77309215]
[1721201972316,0.00184,65436.0,65435.0,0.16024141]
[1721201972795,0.05184,65436.0,65435.0,0.16024141]
[1721201972999,0.651003,65436.0,65435.0,0.03724141]
[1721201973409,1.262287,65436.0,65435.0,0.025]
[1721201973921,0.05,65427.0,65425.0,0.1]
[1721201974128,0.115,65426.0,65425.0,0.1]
[1721201974336,0.065,65426.0,65421.0,0.1]
[1721201974539,0.065,65426.0,65422.0,0.152852]
[1721201974900,0.065,65426.0,65423.0,0.1]
[1721201975337,0.05,65424.0,65423.0,0.1]
[1721201975465,0.05,65424.0,65423.0,0.123]
[1721201975667,0.05,65425.0,65423.0,0.123]
[1721201975853,0.1273,65424.0,65423.0,0.023]
[1721201977064,0.1273,65424.0,65423.0,0.03530499]
[1721201977263,0.1273,65424.0,65423.0,0.04930499]
[1721201977403,0.0783,65424.0,65423.0,0.06330499]
[1721201977606,0.1283,65424.0,65423.0,0.04930499]
[1721201977807,0.1283,65424.0,65423.0,0.06330499]
[1721201978254,0.001,65424.0,65423.0,0.21768673]
[1721201978408,0.001,65424.0,65423.0,1.08194173]
[1721201978609,0.001,65424.0,65423.0,0.16330499]
[1721201978880,0.001,65424.0,65423.0,0.47053773]
[1721201979035,0.001,65424.0,65423.0,0.77623973]
[1721201979236,0.001,65424.0,65423.0,0.16330499]
[1721201979434,0.001,65424.0,65423.0,0.21615599]
[1721201979639,0.001,65424.0,65423.0,0.31615599]
[1721201980583,0.001,65424.0,65423.0,0.16330499]
[1721201980721,0.001,65424.0,65423.0,0.77623973]
[1721201982787,0.001,65424.0,65423.0,1.38764373]
[1721201985130,0.001,65424.0,65423.0,1.52844373]
[1721201985477,0.001,65424.0,65423.0,1.65535122]
[1721201985687,0.001,65424.0,65423.0,1.38764373]
[1721201987019,0.001,65424.0,65423.0,1.38856773]
[1721201987635,0.001,65424.0,65423.0,1.51547851]
[1721201988241,0.001,65424.0,65423.0,1.82118051]
[1721201988446,0.001,65424.0,65423.0,2.11928051]
[1721201988878,0.001,65424.0,65423.0,2.18588051]
[1721201989016,0.001,65424.0,65423.0,2.18586602]
[1721201989219,0.001,65424.0,65423.0,2.49156802]
[1721201989473,0.001,65424.0,65423.0,2.49156288]
[1721201989688,0.001,65424.0,65423.0,2.55500791]
[1721201992291,0.001,65424.0,65423.0,2.55500762]
[1721201992421,0.001,65424.0,65423.0,2.60071252]
[1721201992620,0.001,65424.0,65423.0,2.55500677]